fUSD/lending_fUSD_20250302
["ID","MTS","AMOUNT","RATE_DAILY","PERIOD"]
[355159481,1740937882237,-500.0,0.00026266,2]
[355159482,1740937882247,-627.32,0.00026266,2]
[355159483,1740937882257,-500.0,0.00026266,2]
[355159484,1740937882267,-500.0,0.00026266,2]
[355159485,1740937882277,-617.83,0.00026266,2]
[355159486,1740937882287,-500.0,0.00026266,2]
[355159487,1740937882297,-703.69,0.00026266,2]
[355159488,1740937882307,-599.32,0.00026266,2]
[355159489,1740937882318,-500.0,0.00026266,2]
[355159490,1740937882328,-500.0,0.00026266,2]
[355159491,1740937882339,-500.0,0.00026266,2]
[355159492,1740937882349,-500.0,0.00026266,2]
[355159493,1740937882359,-500.0,0.00026266,2]
[355159494,1740937882369,-151.0,0.00026266,7]
[355159495,1740937882379,-670.1,0.00026266,2]
[355159496,1740937882390,-637.95,0.00026266,2]
[355159497,1740937882400,-813.8,0.00026266,2]
[355159498,1740937882411,-500.0,0.00026266,2]
[355159499,1740937882420,-2192.95,0.00026266,2]
[355159500,1740937882430,-500.0,0.00026266,2]
[355159501,1740937882440,-807.59,0.00026266,2]
[355159502,1740937882453,-500.0,0.00026266,2]
[355159503,1740937882463,-1250.18,0.00026266,2]
[355159504,1740937882473,-500.0,0.00026266,2]
[355159505,1740937882483,-703.25,0.00026266,2]
[355159506,1740937882493,-1557.45,0.00026266,2]
[355159507,1740937882504,-1624.15,0.00026266,2]
[355159508,1740937882516,-1549.91,0.00026266,2]
[355159509,1740937882527,-151.0,0.00026266,7]
[355159510,1740937882538,-1154.14,0.00026266,2]
[355159511,1740937882549,-730.08,0.00026266,2]
[355159512,1740937882560,-500.0,0.00026266,2]
[355159513,1740937882572,-856.1,0.00026266,2]
[355159514,1740937882584,-500.0,0.00026266,2]
[355159515,1740937882596,-1218.98,0.00026266,2]
[355159516,1740937882607,-1590.11,0.00026266,2]
[355159517,1740937882623,-998.58,0.00026266,2]
[355159518,1740937882634,-500.0,0.00026266,2]
[355159519,1740937882645,-761.57,0.00026266,2]
[355159520,1740937882656,-763.27,0.00026266,2]
[355159521,1740937882666,-993.48,0.00026266,2]
[355159522,1740937882676,-855.19,0.00026266,2]
[355159523,1740937882687,-500.0,0.00026266,2]
[355159524,1740937882696,-925.83,0.00026266,2]
[355159525,1740937882711,-532.0,0.00026266,2]
[355159526,1740937882721,-604.56,0.00026266,2]
[355159527,1740937882731,-559.41,0.00026266,2]
[355159528,1740937882741,-500.0,0.00026266,2]
[355159529,1740937882752,-565.81,0.00026266,2]
[355159530,1740937882763,-1650.214993,0.00026266,7]
[355159531,1740937882774,-1650.214993,0.00026266,7]
[355159532,1740937882785,-964.16,0.00026266,2]
[355159533,1740937882797,-649.62,0.00026266,2]
[355159534,1740937882809,-500.0,0.00026266,2]
[355159535,1740937882820,-500.0,0.00026266,2]
[355159536,1740937882830,-500.0,0.00026266,2]
[355159537,1740937882840,-1097.56,0.00026266,2]
[355159538,1740937882851,-500.0,0.00026266,2]
[355159539,1740937882862,-1028.47,0.00026266,2]
[355159540,1740937882874,-868.34,0.00026266,2]
[355159541,1740937882884,-500.0,0.00026266,2]
[355159542,1740937882894,-945.74,0.00026266,2]
[355159543,1740937882905,-1222.82,0.00026266,2]
[355159544,1740937882915,-500.0,0.00026266,2]
[355159545,1740937882927,-500.0,0.00026266,2]
[355159546,1740937882937,-883.05,0.00026266,2]
[355159547,1740937882948,-704.4,0.00026266,2]
[355159548,1740937882962,-6234.66,0.00026266,2]
[355159549,1740937882972,-557.6,0.00026266,2]
[355159550,1740937882982,-543.73,0.00026266,2]
[355159551,1740937883208,-500.0,0.00026266,2]
[355159552,1740937883219,-500.0,0.00026266,2]
[355159553,1740937883230,-1146.22,0.00026266,2]
[355159554,1740937883240,-500.0,0.00026266,2]
[355159555,1740937883249,-500.0,0.00026266,2]
[355159556,1740937883259,-1442.71,0.00026266,2]
[355159557,1740937883269,-500.0,0.00026267,2]
[355159558,1740937883279,-500.0,0.00026267,2]
[355159559,1740937883288,-500.0,0.00026267,2]
[355159560,1740937883299,-500.0,0.00026267,2]
[355159561,1740937883308,-317.28,0.00026267,2]
[355159562,1740937883317,-500.0,0.00026267,2]
[355159563,1740937883327,-500.0,0.00026267,2]
[355159564,1740937883337,-500.0,0.00026267,2]
[355159565,1740937883347,-303.41,0.00026267,2]
[355159566,1740937883358,-500.0,0.00026267,2]
[355159567,1740937883368,-500.0,0.00026267,2]
[355159568,1740937883377,-500.0,0.00026267,2]
[355159569,1740937883387,-500.0,0.00026267,2]
[355159570,1740937883397,-500.0,0.00026267,2]
[355159571,1740937883406,-518.68,0.00026267,2]
[355159572,1740937883415,-500.0,0.00026267,2]
[355159573,1740937883425,-636.11,0.00026267,2]
[355159574,1740937883434,-500.0,0.00026267,2]
[355159575,1740937883444,-648.35,0.00026267,2]
[355159576,1740937883456,-500.0,0.00026267,2]
[355159577,1740937883465,-500.0,0.00026267,2]
[355159578,1740937883475,-500.0,0.00026267,2]
[355159579,1740937883484,-500.0,0.00026267,2]
[355159580,1740937883494,-151.0,0.00026267,7]
[355159581,1740937883508,-500.0,0.00026267,2]
[355159582,1740937883518,-588.19,0.00026267,2]
[355159583,1740937883527,-351.94,0.00026267,2]
[355159584,1740937883537,-500.0,0.00026267,2]
[355159585,1740937883547,-500.0,0.00026267,2]
[355159586,1740937883556,-500.0,0.00026267,2]
[355159587,1740937883566,-500.0,0.00026267,2]
[355159588,1740937883575,-500.0,0.00026267,2]
[355159589,1740937883585,-232.14,0.00026267,2]
[355159590,1740937883595,-500.0,0.00026267,2]
[355159591,1740937883606,-1850.193824,0.00026267,7]
[355159592,1740937883616,-1850.193824,0.00026267,7]
[355159593,1740937883626,-981.07,0.00026267,2]
[355159594,1740937883635,-893.26,0.00026267,2]
[355159595,1740937883645,-726.79,0.00026267,2]
[355159596,1740937883656,-616.74,0.00026267,2]
[355159597,1740937883666,-561.65,0.00026267,2]
[355159598,1740937883676,-500.0,0.00026267,2]
[355159599,1740937883686,-500.0,0.00026267,2]
[355159600,1740937883696,-500.0,0.00026267,2]
[355159601,1740937883708,-500.0,0.00026267,2]
[355159602,1740937883719,-340.16,0.00026267,2]
[355159603,1740937883729,-385.05112052,0.00026267,2]
[355159604,1740937883739,-500.0,0.00026267,2]
[355159605,1740937883750,-500.0,0.00026267,2]
[355159606,1740937883760,-560.28,0.00026267,2]
[355159607,1740937883771,-500.0,0.00026267,2]
[355159608,1740937883781,-500.0,0.00026267,2]
[355159609,1740937883792,-576.41,0.00026267,2]
[355159610,1740937883803,-500.0,0.00026267,2]
[355159611,1740937883814,-500.0,0.00026267,2]
[355159612,1740937883825,-500.0,0.00026267,2]
[355159613,1740937883835,-500.0,0.00026267,2]
[355159614,1740937883845,-679.32,0.00026267,2]
[355159615,1740937883855,-151.0,0.00026267,7]
[355159616,1740937883866,-500.0,0.00026267,2]
[355159617,1740937883876,-500.0,0.00026267,2]
[355159618,1740937883886,-500.0,0.00026267,2]
[355159619,1740937883897,-500.0,0.00026267,2]
[355159620,1740937883907,-582.51,0.00026267,2]
[355159621,1740937883917,-309.23,0.00026267,2]
[355159622,1740937883930,-216.26,0.00026267,2]
[355159623,1740937883940,-668.22,0.00026267,2]
[355159624,1740937883954,-500.0,0.00026267,2]
[355159625,1740937883964,-574.39,0.00026267,2]
[355159626,1740937883975,-250.177577,0.00026267,7]
[355159627,1740937883985,-500.0,0.00026267,2]
[355159628,1740937883995,-151.0,0.00026267,7]
[355159629,1740937884006,-661.62,0.00026267,2]
[355159630,1740937884018,-500.0,0.00026267,2]
[355159631,1740937884028,-500.0,0.00026267,2]
[355159632,1740937884043,-500.0,0.00026267,2]
[355159633,1740937884054,-162.98,0.00026267,2]
[355159634,1740937884064,-500.0,0.00026267,2]
[355159635,1740937884074,-606.98,0.00026267,2]
[355159636,1740937884084,-500.0,0.00026267,2]
[355159637,1740937884094,-500.0,0.00026267,2]
[355159638,1740937884104,-375.690979,0.00026267,7]
[355159639,1740937884115,-375.690979,0.00026267,7]
[355159640,1740937884124,-500.0,0.00026267,2]
[355159641,1740937884135,-151.0,0.00026267,7]
[355159642,1740937884146,-384.517256,0.00026267,7]
[355159643,1740937884157,-500.0,0.00026267,2]
[355159644,1740937884167,-384.517256,0.00026267,7]
[355159645,1740937884178,-151.0,0.00026267,7]
[355159646,1740937884188,-551.39,0.00026267,2]
[355159647,1740937884199,-151.0,0.00026267,7]
[355159648,1740937884212,-500.0,0.00026267,2]
[355159649,1740937884222,-500.0,0.00026267,2]
[355159650,1740937884232,-883.35,0.00026267,2]
[355159651,1740937884243,-500.0,0.00026267,2]
[355159652,1740937884253,-500.0,0.00026267,2]
[355159653,1740937884263,-1359.56,0.00026267,2]
[355159654,1740937884273,-2139.64,0.00026267,2]
[355159655,1740937884283,-500.0,0.00026267,2]
[355159656,1740937884293,-500.0,0.00026267,2]
[355159657,1740937884303,-666.3,0.00026267,2]
[355159658,1740937884313,-1000.0,0.00026267,2]
[355159659,1740937884323,-506.21,0.00026267,2]
[355159660,1740937884333,-500.0,0.00026267,2]
[355159661,1740937884342,-1073.90918643,0.00026267,2]
[355159662,1740937884729,-169.83081357,0.00026267,2]
[355159663,1740937884739,-151.0,0.00026267,7]
[355159664,1740937884749,-551.88,0.00026267,2]
[355159665,1740937884760,-1338.27,0.00026267,2]
[355159666,1740937884770,-580.22,0.00026267,2]
[355159667,1740937884780,-500.0,0.00026267,2]
[355159668,1740937884791,-500.0,0.00026267,2]
[355159669,1740937884801,-500.0,0.00026267,2]
[355159670,1740937884811,-510.22304455,0.00026267,2]
[355159671,1740937884821,-900.63,0.00026267,2]
[355159672,1740937884831,-500.0,0.00026267,2]
[355159673,1740937884842,-711.69,0.00026267,2]
[355159674,1740937884852,-1990.27,0.00026267,2]
[355159675,1740937884862,-500.0,0.00026267,2]
[355159676,1740937884872,-789.39,0.00026267,2]
[355159677,1740937884882,-2000.73,0.00026267,2]
[355159678,1740937884892,-561.03,0.00026267,2]
[355159679,1740937884902,-1144.17,0.00026267,2]
[355159680,1740937884912,-751.482566,0.00026267,7]
[355159681,1740937884922,-500.0,0.00026267,2]
[355159682,1740937884932,-751.482566,0.00026267,7]
[355159683,1740937884942,-500.0,0.00026267,2]
[355159684,1740937884970,-500.0,0.00026267,2]
[355159685,1740937884981,-812.93,0.00026267,2]
[355159686,1740937884992,-615.1,0.00026267,2]
[355159687,1740937885002,-500.0,0.00026267,2]
[355159688,1740937885012,-623.5,0.00026267,2]
[355159689,1740937885022,-500.0,0.00026267,2]
[355159690,1740937885032,-500.0,0.00026267,2]
[355159691,1740937885043,-243.10788,0.00026267,7]
[355159692,1740937885053,-500.0,0.00026267,2]
[355159693,1740937885064,-243.10788,0.00026267,7]
[355159694,1740937885074,-762.88,0.00026267,2]
[355159695,1740937885084,-366.349161,0.00026267,7]
[355159696,1740937885094,-366.349161,0.00026267,7]
[355159697,1740937885103,-170.96,0.00026287,2]
[355159698,1740937885114,-500.0,0.000263,2]
[355159699,1740937885123,-151.0,0.00026301,7]
[355159700,1740937885133,-181.317275,0.00026301,7]
[355159701,1740937885143,-500.0,0.00026301,2]
[355159702,1740937885154,-678.56,0.00026301,2]
[355159703,1740937885163,-500.0,0.00026301,2]
[355159704,1740937885173,-500.0,0.00026301,2]
[355159705,1740937885183,-500.0,0.00026301,2]
[355159706,1740937885193,-701.59,0.00026301,2]
[355159707,1740937885208,-500.0,0.00026301,2]
[355159708,1740937885219,-500.0,0.00026301,2]
[355159709,1740937885229,-151.0,0.00026301,7]
[355159710,1740937885239,-151.0,0.00026301,7]
[355159711,1740937885250,-362.39064584,0.00026383,4]
[355159712,1740937885260,-235.73587784,0.00026403,2]
[355159713,1740937885270,-1000.0,0.00026416,2]
[355159714,1740937885280,-500.0,0.0002644,2]
[355159715,1740937885290,-500.0,0.0002644,2]
[355159716,1740937885300,-1027.09,0.0002644,2]
[355159717,1740937885311,-500.0,0.0002644,2]
[355159718,1740937885321,-500.0,0.0002644,2]
[355159719,1740937885330,-661.31,0.0002644,2]
[355159720,1740937885340,-500.0,0.0002644,2]
[355159721,1740937885349,-664.68,0.0002644,2]
[355159722,1740937885359,-500.0,0.0002644,2]
[355159723,1740937885370,-500.0,0.0002644,2]
[355159724,1740937885380,-688.44,0.0002644,2]
[355159725,1740937885390,-799.43,0.0002644,2]
[355159726,1740937885399,-1011.96,0.0002644,2]
[355159727,1740937885410,-500.0,0.0002644,2]
[355159728,1740937885420,-547.39,0.0002644,2]
[355159729,1740937885430,-980.75,0.0002644,2]
[355159730,1740937885440,-758.27,0.0002644,2]
[355159731,1740937885454,-500.0,0.0002644,2]
[355159732,1740937885463,-638.55,0.0002644,2]
[355159733,1740937885473,-500.0,0.0002644,2]
[355159734,1740937885483,-500.0,0.0002644,2]
[355159735,1740937885493,-500.0,0.0002644,2]
[355159736,1740937885503,-500.0,0.0002644,2]
[355159737,1740937885512,-323.76,0.0002644,2]
[355159738,1740937885523,-537.89,0.0002644,2]
[355159739,1740937885532,-1342.57,0.0002644,2]
[355159740,1740937885542,-500.0,0.0002644,2]
[355159741,1740937885552,-501.29,0.0002644,2]
[355159742,1740937885562,-2905.46,0.0002644,2]
[355159743,1740937885572,-500.0,0.00026441,2]
[355159744,1740937885582,-500.0,0.00026441,2]
[355159745,1740937885591,-400.963399,0.00026441,2]
[355159746,1740937885601,-877.08,0.00026441,2]
[355159747,1740937885611,-1696.63,0.00026441,2]
[355159748,1740937885621,-500.0,0.00026441,2]
[355159749,1740937885632,-500.0,0.00026441,2]
[355159750,1740937885641,-500.0,0.00026441,2]
[355159751,1740937885651,-312.078972,0.00026441,2]
[355159752,1740937885662,-992.81,0.00026441,2]
[355159753,1740937885672,-500.0,0.00026441,2]
[355159754,1740937885681,-500.0,0.00026441,2]
[355159755,1740937885691,-1164.54,0.00026441,2]
[355159756,1740937885704,-3123.18,0.00026441,2]
[355159757,1740937885714,-1410.0,0.00026441,2]
[355159758,1740937885724,-500.0,0.00026441,2]
[355159759,1740937885735,-1234.93,0.00026441,2]
[355159760,1740937885745,-1043.6,0.00026441,2]
[355159761,1740937885755,-500.0,0.00026441,2]
[355159762,1740937885765,-1694.27,0.00026441,2]
[355159763,1740937885775,-1334.61,0.00026441,2]
[355159764,1740937885786,-784.6,0.00026441,2]
[355159765,1740937885796,-500.0,0.00026441,2]
[355159766,1740937885812,-1672.23,0.00026441,2]
[355159767,1740937886142,-500.0,0.00026441,2]
[355159768,1740937886152,-2496.59,0.00026441,2]
[355159769,1740937886163,-19.20462365,0.00026441,2]
[355159770,1740937886177,-1518.09537635,0.00026441,2]
[355159771,1740937886187,-1129.86,0.00026441,2]
[355159772,1740937886197,-907.66,0.00026441,2]
[355159773,1740937886214,-1407.11,0.00026441,2]
[355159774,1740937886224,-608.64,0.00026441,2]
[355159775,1740937886234,-453.77,0.00026441,2]
[355159776,1740937886243,-686.18,0.00026441,2]
[355159777,1740937886253,-649.02,0.00026441,2]
[355159778,1740937886262,-765.63,0.00026441,2]
[355159779,1740937886272,-1189.75,0.00026441,2]
[355159780,1740937886281,-533.52,0.00026441,2]
[355159781,1740937886291,-500.0,0.00026441,2]
[355159782,1740937886301,-767.22,0.00026441,2]
[355159783,1740937886311,-1772.06757758,0.00026441,2]
[355159784,1740937886324,-360.59242242,0.00026441,2]
[355159785,1740937886334,-500.0,0.00026442,2]
[355159786,1740937886343,-500.0,0.00026442,2]
[355159787,1740937886353,-500.0,0.00026442,2]
[355159788,1740937886363,-500.0,0.00026442,2]
[355159789,1740937886373,-500.0,0.00026442,2]
[355159790,1740937886382,-561.04,0.00026442,2]
[355159791,1740937886392,-500.0,0.00026442,2]
[355159792,1740937886401,-571.0,0.00026442,2]
[355159793,1740937886411,-500.0,0.00026442,2]
[355159794,1740937886420,-500.0,0.00026442,2]
[355159795,1740937886429,-500.0,0.00026442,2]
[355159796,1740937886439,-428.7,0.00026442,2]
[355159797,1740937886449,-500.0,0.00026442,2]
[355159798,1740937886462,-554.65,0.00026442,2]
[355159799,1740937886471,-500.0,0.00026442,2]
[355159800,1740937886481,-500.0,0.00026442,2]
[355159801,1740937886491,-500.0,0.00026442,2]
[355159802,1740937886501,-500.0,0.00026442,2]
[355159803,1740937886512,-413.4,0.00026442,2]
[355159804,1740937886523,-291.75,0.00026442,2]
[355159805,1740937886532,-500.0,0.00026442,2]
[355159806,1740937886542,-500.0,0.00026442,2]
[355159807,1740937886552,-500.0,0.00026442,2]
[355159808,1740937886563,-437.7,0.00026442,2]
[355159809,1740937886572,-562.41,0.00026442,2]
[355159810,1740937886582,-10234.7496282,0.00026525,2]
[355159811,1740937886592,-588.82,0.0002654,2]
[355159812,1740937886603,-500.0,0.0002654,2]
[355159813,1740937886612,-500.0,0.0002654,2]
[355159814,1740937886622,-500.0,0.0002654,2]
[355159815,1740937886632,-500.0,0.0002654,2]
[355159816,1740937886642,-500.0,0.0002654,2]
[355159817,1740937886652,-500.0,0.0002654,2]
[355159818,1740937886661,-553.15,0.0002654,2]
[355159819,1740937886671,-641.23,0.0002654,2]
[355159820,1740937886681,-500.0,0.0002654,2]
[355159821,1740937886690,-500.0,0.0002654,2]
[355159822,1740937886700,-500.0,0.0002654,2]
[355159823,1740937886713,-500.0,0.0002654,2]
[355159824,1740937886723,-500.0,0.0002654,2]
[355159825,1740937886733,-520.82,0.0002654,2]
[355159826,1740937886744,-500.0,0.0002654,2]
[355159827,1740937886753,-500.0,0.0002654,2]
[355159828,1740937886763,-549.79,0.0002654,2]
[355159829,1740937886772,-388.97,0.0002654,2]
[355159830,1740937886782,-583.9,0.0002654,2]
[355159831,1740937886792,-151.0,0.0002654,7]
[355159832,1740937886802,-500.0,0.0002654,2]
[355159833,1740937886812,-500.0,0.0002654,2]
[355159834,1740937886823,-500.0,0.0002654,2]
[355159835,1740937886832,-500.0,0.0002654,2]
[355159836,1740937886843,-500.0,0.0002654,2]
[355159837,1740937886852,-550.36,0.0002654,2]
[355159838,1740937886862,-332.98,0.0002654,2]
[355159839,1740937886872,-627.32,0.0002654,2]
[355159840,1740937886882,-500.0,0.0002654,2]
[355159841,1740937886891,-500.0,0.0002654,2]
[355159842,1740937886901,-3064.006348,0.0002654,7]
[355159843,1740937886910,-3064.006348,0.0002654,7]
[355159844,1740937886920,-617.83,0.0002654,2]
[355159845,1740937886930,-500.0,0.0002654,2]
[355159846,1740937886940,-703.69,0.0002654,2]
[355159847,1740937886950,-599.32,0.0002654,2]
[355159848,1740937886963,-500.0,0.0002654,2]
[355159849,1740937886972,-500.0,0.0002654,2]
[355159850,1740937886982,-500.0,0.0002654,2]
[355159851,1740937886992,-500.0,0.0002654,2]
[355159852,1740937887002,-500.0,0.0002654,2]
[355159853,1740937887013,-169.63389,0.0002654,7]
[355159854,1740937887023,-169.63389,0.0002654,7]
[355159855,1740937887033,-670.1,0.0002654,2]
[355159856,1740937887044,-637.95,0.0002654,2]
[355159857,1740937887054,-813.8,0.0002654,2]
[355159858,1740937887064,-500.0,0.0002654,2]
[355159859,1740937887074,-2192.95,0.0002654,2]
[355159860,1740937887083,-500.0,0.0002654,2]
[355159861,1740937887094,-807.59,0.0002654,2]
[355159862,1740937887103,-500.0,0.0002654,2]
[355159863,1740937887114,-1250.18,0.0002654,2]
[355159864,1740937887123,-500.0,0.0002654,2]
[355159865,1740937887134,-703.25,0.0002654,2]
[355159866,1740937887145,-1557.45,0.0002654,2]
[355159867,1740937887154,-1624.15,0.0002654,2]
[355159868,1740937887165,-1549.91,0.0002654,2]
[355159869,1740937887174,-1154.14,0.0002654,2]
[355159870,1740937887184,-730.08,0.0002654,2]
[355159871,1740937887195,-500.0,0.0002654,2]
[355159872,1740937887208,-856.1,0.0002654,2]
[355159873,1740937887219,-616.0,0.0002654,2]
[355159874,1740937887228,-1218.98,0.0002654,2]
[355159875,1740937887238,-1590.11,0.0002654,2]
[355159876,1740937887249,-998.58,0.0002654,2]
[355159877,1740937887259,-500.0,0.0002654,2]
[355159878,1740937887270,-761.57,0.0002654,2]
[355159879,1740937887280,-763.27,0.0002654,2]
[355159880,1740937887290,-993.48,0.0002654,2]
[355159881,1740937887300,-855.19,0.0002654,2]
[355159882,1740937887310,-500.0,0.0002654,2]
[355159883,1740937887320,-925.83,0.0002654,2]
[355159884,1740937887329,-532.0,0.0002654,2]
[355159885,1740937887339,-604.56,0.0002654,2]
[355159886,1740937887349,-559.41,0.0002654,2]
[355159887,1740937887358,-500.0,0.0002654,2]
[355159888,1740937887368,-565.81,0.0002654,2]
[355159889,1740937887377,-964.16,0.0002654,2]
[355159890,1740937887387,-649.62,0.0002654,2]
[355159891,1740937887398,-500.0,0.0002654,2]
[355159892,1740937887407,-500.0,0.0002654,2]
[355159893,1740937887416,-500.0,0.0002654,2]
[355159894,1740937887426,-1097.56,0.0002654,2]
[355159895,1740937887435,-500.0,0.0002654,2]
[355159896,1740937887444,-1028.47,0.0002654,2]
[355159897,1740937887455,-868.34,0.0002654,2]
[355159898,1740937887465,-500.0,0.0002654,2]
[355159899,1740937887475,-945.74,0.0002654,2]
[355159900,1740937887484,-1222.82,0.0002654,2]
[355159901,1740937887494,-500.0,0.0002654,2]
[355159902,1740937887503,-500.0,0.0002654,2]
[355159903,1740937887513,-883.05,0.0002654,2]
[355159904,1740937887523,-704.4,0.0002654,2]
[355159905,1740937887534,-6234.66,0.0002654,2]
[355159906,1740937887543,-557.6,0.0002654,2]
[355159907,1740937887553,-500.0,0.0002654,2]
[355159908,1740937887563,-500.0,0.0002654,2]
[355159909,1740937887573,-1146.22,0.0002654,2]
[355159910,1740937887583,-500.0,0.0002654,2]
[355159911,1740937887593,-500.0,0.0002654,2]
[355159912,1740937887602,-1442.71,0.0002654,2]
[355159913,1740937887612,-500.0,0.00026541,2]
[355159914,1740937887622,-500.0,0.00026541,2]
[355159915,1740937887631,-500.0,0.00026541,2]
[355159916,1740937887641,-500.0,0.00026541,2]
[355159917,1740937887650,-500.0,0.00026541,2]
[355159918,1740937887660,-500.0,0.00026541,2]
[355159919,1740937887669,-413.54,0.00026541,2]
[355159920,1740937887679,-500.0,0.00026541,2]
[355159921,1740937887688,-500.0,0.00026541,2]
[355159922,1740937887698,-500.0,0.00026541,2]
[355159923,1740937887711,-156.41,0.00026541,2]
[355159924,1740937887721,-563.96,0.00026541,2]
[355159925,1740937887731,-518.68,0.00026541,2]
[355159926,1740937887741,-500.0,0.00026541,2]
[355159927,1740937887750,-636.11,0.00026541,2]
[355159928,1740937887760,-648.35,0.00026541,2]
[355159929,1740937887771,-500.0,0.00026541,2]
[355159930,1740937887781,-549.56,0.00026541,2]
[355159931,1740937887791,-367.89,0.00026541,2]
[355159932,1740937887800,-500.0,0.00026541,2]
[355159933,1740937887811,-500.0,0.00026541,2]
[355159934,1740937887820,-588.19,0.00026541,2]
[355159935,1740937887830,-500.0,0.00026541,2]
[355159936,1740937887841,-500.0,0.00026541,2]
[355159937,1740937887851,-500.0,0.00026541,2]
[355159938,1740937887861,-500.0,0.00026541,2]
[355159939,1740937887872,-500.0,0.00026541,2]
[355159940,1740937887881,-500.0,0.00026541,2]
[355159941,1740937887891,-981.07,0.00026541,2]
[355159942,1740937887901,-151.0,0.00026541,7]
[355159943,1740937887911,-893.26,0.00026541,2]
[355159944,1740937887922,-151.0,0.00026541,7]
[355159945,1740937887931,-726.79,0.00026541,2]
[355159946,1740937887941,-616.74,0.00026541,2]
[355159947,1740937887958,-561.65,0.00026541,2]
[355159948,1740937887968,-500.0,0.00026541,2]
[355159949,1740937887979,-500.0,0.00026541,2]
[355159950,1740937887988,-500.0,0.00026541,2]
[355159951,1740937887998,-151.0,0.00026541,7]
[355159952,1740937888008,-500.0,0.00026541,2]
[355159953,1740937888018,-500.0,0.00026541,2]
[355159954,1740937888028,-500.0,0.00026541,2]
[355159955,1740937888039,-560.28,0.00026541,2]
[355159956,1740937888050,-500.0,0.00026541,2]
[355159957,1740937888060,-381.08,0.00026541,2]
[355159958,1740937888071,-576.41,0.00026541,2]
[355159959,1740937888081,-151.0,0.00026541,7]
[355159960,1740937888091,-500.0,0.00026541,2]
[355159961,1740937888100,-151.0,0.00026541,7]
[355159962,1740937888112,-151.0,0.00026541,7]
[355159963,1740937888122,-171.78,0.00026541,2]
[355159964,1740937888133,-205.276672,0.00026541,7]
[355159965,1740937888143,-500.0,0.00026541,2]
[355159966,1740937888154,-450.21,0.00026541,2]
[355159967,1740937888163,-679.32,0.00026541,2]
[355159968,1740937888173,-500.0,0.00026541,2]
[355159969,1740937888183,-220.224945,0.00026541,7]
[355159970,1740937888192,-220.224945,0.00026541,7]
[355159971,1740937888206,-500.0,0.00026541,2]
[355159972,1740937888216,-500.0,0.00026541,2]
[355159973,1740937888226,-500.0,0.00026541,2]
[355159974,1740937888236,-151.406953,0.00026541,7]
[355159975,1740937888245,-151.0,0.00026541,7]
[355159976,1740937888256,-151.0,0.00026541,7]
[355159977,1740937888267,-151.0,0.00026541,7]
[355159978,1740937888277,-582.51,0.00026541,2]
[355159979,1740937888288,-668.22,0.00026541,2]
[355159980,1740937888297,-500.0,0.00026541,2]